[Event "Early-Titled-Tuesday-Blitz-July-09-2024"]
[Site "Chess.com"]
[Date "2024.07.09"]
[Round "2"]
[White "Chaubunagungamaug1"]
[Black "Vision_64"]
[Result "0-1"]
[WhiteElo "2483"]
[BlackElo "2309"]
[TimeControl "180+1"]
[EndTime "8:19:53 PDT"]
[Termination "Vision_64 won by resignation"]

1. d4 {[%clk 0:03:00.9]} 1... Nf6 {[%clk 0:02:59.3]} 2. c4 {[%clk 0:03:00.8]}
2... c5 {[%clk 0:02:59.2]} 3. d5 {[%clk 0:03:01.1]} 3... b5 {[%clk 0:02:59.5]}
4. Nf3 {[%clk 0:02:59.9]} 4... d6 {[%clk 0:02:56.7]} 5. Qc2 {[%clk 0:02:55.9]}
5... g6 {[%clk 0:02:53.6]} 6. e4 {[%clk 0:02:55.6]} 6... bxc4 {[%clk 0:02:49.6]}
7. Bxc4 {[%clk 0:02:55.6]} 7... Bg7 {[%clk 0:02:47.2]} 8. Nc3 {[%clk 0:02:55.4]}
8... O-O {[%clk 0:02:45.7]} 9. O-O {[%clk 0:02:55.5]} 9... Nbd7 {[%clk
0:02:44.4]} 10. h3 {[%clk 0:02:51.8]} 10... Nb6 {[%clk 0:02:42.4]} 11. b3 {[%clk
0:02:33.5]} 11... a5 {[%clk 0:02:39.9]} 12. Bf4 {[%clk 0:02:28]} 12... Nfd7
{[%clk 0:02:34.6]} 13. Rab1 {[%clk 0:02:17.6]} 13... a4 {[%clk 0:02:16.3]} 14.
Nxa4 {[%clk 0:02:09.9]} 14... Nxa4 {[%clk 0:02:13.5]} 15. bxa4 {[%clk
0:02:10.8]} 15... Nb6 {[%clk 0:02:11.1]} 16. Bb5 {[%clk 0:02:09.2]} 16... Ba6
{[%clk 0:02:08.2]} 17. Rfd1 {[%clk 0:01:57.2]} 17... Qc7 {[%clk 0:01:53.3]} 18.
Nd2 {[%clk 0:01:39.4]} 18... Rfb8 {[%clk 0:01:50.8]} 19. Nc4 {[%clk 0:01:34.5]}
19... Nc8 {[%clk 0:01:47.7]} 20. Bd2 {[%clk 0:01:19.7]} 20... Bd4 {[%clk
0:01:01.2]} 21. Ba5 {[%clk 0:00:44.2]} 21... Qa7 {[%clk 0:01:00.7]} 22. Bc3
{[%clk 0:00:36.6]} 22... Qc7 {[%clk 0:01:00.3]} 23. Bxd4 {[%clk 0:00:31.3]}
23... cxd4 {[%clk 0:00:59]} 24. Rxd4 {[%clk 0:00:25]} 24... Qc5 {[%clk
0:00:51.4]} 25. Rdd1 {[%clk 0:00:14.9]} 25... Bxb5 {[%clk 0:00:50.9]} 26. axb5
{[%clk 0:00:15.6]} 26... Nb6 {[%clk 0:00:45.8]} 27. Ne3 {[%clk 0:00:14]} 27...
Qxc2 {[%clk 0:00:44.8]} 28. Nxc2 {[%clk 0:00:14.9]} 28... Rxa2 {[%clk
0:00:44.8]} 29. Nb4 {[%clk 0:00:14.8]} 29... Ra4 {[%clk 0:00:40.4]} 30. Nc6
{[%clk 0:00:14.5]} 30... Rb7 {[%clk 0:00:39.4]} 31. f3 {[%clk 0:00:13.8]} 31...
Nc8 {[%clk 0:00:35.1]} 32. Rdc1 {[%clk 0:00:12.3]} 32... Kg7 {[%clk 0:00:25.5]}
33. Nd8 {[%clk 0:00:12]} 33... Rb8 {[%clk 0:00:24.6]} 34. Rc6 {[%clk 0:00:11.5]}
34... Na7 {[%clk 0:00:23.2]} 35. b6 {[%clk 0:00:09.1]} 35... Nxc6 {[%clk
0:00:21.6]} 36. dxc6 {[%clk 0:00:08.1]} 36... Rc4 {[%clk 0:00:19.9]} 37. Kh2
{[%clk 0:00:05.1]} 37... Rxd8 {[%clk 0:00:18.7]} 38. c7 {[%clk 0:00:05.4]} 38...
Rc8 {[%clk 0:00:17.4]} 39. b7 {[%clk 0:00:05]} 39... R4xc7 {[%clk 0:00:17.9]}
40. bxc8=Q {[%clk 0:00:05]} 40... Rxc8 {[%clk 0:00:18.3]} 41. Kg3 {[%clk
0:00:05.2]} 41... Rc2 {[%clk 0:00:17.1]} 42. Rb7 {[%clk 0:00:04.6]} 42... Kf6
{[%clk 0:00:17.5]} 43. Rb6 {[%clk 0:00:04.6]} 43... Ke6 {[%clk 0:00:17.4]} 44.
Rb7 {[%clk 0:00:04.5]} 44... f6 {[%clk 0:00:17.4]} 45. Rb8 {[%clk 0:00:04.9]}
45... h5 {[%clk 0:00:16.7]} 46. h4 {[%clk 0:00:05.3]} 46... g5 {[%clk
0:00:16.2]} 47. hxg5 {[%clk 0:00:05.5]} 47... fxg5 {[%clk 0:00:16.7]} 48. Rg8
{[%clk 0:00:06]} 48... Kf6 {[%clk 0:00:17]} 49. Kh3 {[%clk 0:00:06.4]} 49... Rc5
{[%clk 0:00:16.2]} 50. Rh8 {[%clk 0:00:06.7]} 50... Kg6 {[%clk 0:00:16.4]} 51.
Rg8+ {[%clk 0:00:07.2]} 51... Kf7 {[%clk 0:00:16.6]} 52. Rh8 {[%clk 0:00:07.7]}
52... Kg6 {[%clk 0:00:16.4]} 53. Rg8+ {[%clk 0:00:08.2]} 53... Kh7 {[%clk
0:00:16.3]} 54. Re8 {[%clk 0:00:08.6]} 54... Re5 {[%clk 0:00:15.8]} 55. g3
{[%clk 0:00:07.1]} 55... Kg7 {[%clk 0:00:15.6]} 56. Kg2 {[%clk 0:00:07.3]} 56...
Kf7 {[%clk 0:00:15.9]} 57. Rh8 {[%clk 0:00:07.7]} 57... g4 {[%clk 0:00:15]} 58.
fxg4 {[%clk 0:00:04.8]} 58... hxg4 {[%clk 0:00:15.4]} 59. Rh7+ {[%clk
0:00:05.1]} 59... Kg6 {[%clk 0:00:14.3]} 60. Rh8 {[%clk 0:00:03.4]} 60... Rxe4
{[%clk 0:00:14.8]} 61. Rg8+ {[%clk 0:00:03.9]} 61... Kf5 {[%clk 0:00:14.9]} 62.
Rf8+ {[%clk 0:00:03.8]} 62... Ke5 {[%clk 0:00:14.5]} 63. Kf2 {[%clk 0:00:04.4]}
63... e6 {[%clk 0:00:13.5]} 64. Rg8 {[%clk 0:00:04.6]} 64... Kd4 {[%clk
0:00:12.9]} 65. Rd8 {[%clk 0:00:04.4]} 65... d5 {[%clk 0:00:13.2]} 66. Ra8
{[%clk 0:00:05.1]} 66... e5 {[%clk 0:00:12.6]} 67. Ra4+ {[%clk 0:00:05.1]} 67...
Kd3 {[%clk 0:00:12.2]} 68. Ra3+ {[%clk 0:00:05.7]} 68... Kc2 {[%clk 0:00:12]}
69. Ra2+ {[%clk 0:00:05.7]} 69... Kb3 {[%clk 0:00:12.3]} 70. Ra5 {[%clk
0:00:06.3]} 70... Rd4 {[%clk 0:00:10.9]} 71. Ke3 {[%clk 0:00:06.4]} 71... Kc3
{[%clk 0:00:11.3]} 72. Ra3+ {[%clk 0:00:06.7]} 72... Kc4 {[%clk 0:00:11.3]} 73.
Ra4+ {[%clk 0:00:07.1]} 73... Kc5 {[%clk 0:00:10.2]} 74. Ra5+ {[%clk 0:00:07.5]}
74... Kb4 {[%clk 0:00:10.4]} 75. Ra8 {[%clk 0:00:07.1]} 75... Re4+ {[%clk
0:00:10.6]} 76. Kd3 {[%clk 0:00:07]} 76... Re1 {[%clk 0:00:10]} 77. Rb8+ {[%clk
0:00:06.3]} 77... Kc5 {[%clk 0:00:10.4]} 78. Rc8+ {[%clk 0:00:06.6]} 78... Kd6
{[%clk 0:00:10.8]} 79. Rg8 {[%clk 0:00:06.9]} 79... Re4 {[%clk 0:00:09.4]} 80.
Rg6+ {[%clk 0:00:07.4]} 80... Kc5 {[%clk 0:00:09.6]} 81. Ra6 {[%clk 0:00:07.9]}
81... Rb4 {[%clk 0:00:09.1]} 82. Ra5+ {[%clk 0:00:08]} 82... Rb5 {[%clk
0:00:09.4]} 83. Ra4 {[%clk 0:00:08.5]} 83... Rb3+ {[%clk 0:00:09.6]} 84. Ke2
{[%clk 0:00:07.2]} 84... e4 {[%clk 0:00:10.3]} 85. Ra5+ {[%clk 0:00:06.6]} 85...
Kd4 {[%clk 0:00:10.8]} 86. Ra4+ {[%clk 0:00:07]} 86... Ke5 {[%clk 0:00:11.1]}
87. Kf2 {[%clk 0:00:07]} 87... Rf3+ {[%clk 0:00:10.9]} 88. Kg2 {[%clk 0:00:07]}
88... d4 {[%clk 0:00:11.1]} 89. Ra5+ {[%clk 0:00:07]} 89... Kd6 {[%clk
0:00:11.5]} 90. Ra6+ {[%clk 0:00:07.1]} 90... Kc5 {[%clk 0:00:11.7]} 91. Ra5+
{[%clk 0:00:07.6]} 91... Kc4 {[%clk 0:00:12.1]} 92. Re5 {[%clk 0:00:08.1]} 92...
e3 {[%clk 0:00:11.8]} 93. Re4 {[%clk 0:00:08.7]} 93... Kd3 {[%clk 0:00:12.2]}
94. Rxg4 {[%clk 0:00:08.2]} 94... e2 {[%clk 0:00:12.7]} 95. Kxf3 {[%clk
0:00:08.1]} 95... e1=Q {[%clk 0:00:12.8]} 96. Rf4 {[%clk 0:00:08.2]} 96... Qf1+
{[%clk 0:00:12.8]} 97. Kg4 {[%clk 0:00:08.7]} 97... Qg2 {[%clk 0:00:12.3]} 98.
Rf3+ {[%clk 0:00:08]} 98... Ke4 {[%clk 0:00:11.8]} 99. Rf4+ {[%clk 0:00:08.6]}
99... Ke3 {[%clk 0:00:12.2]} 100. Rf3+ {[%clk 0:00:08.2]} 100... Qxf3+ {[%clk
0:00:11.7]} 0-1

[Event "Early-Titled-Tuesday-Blitz-July-09-2024"]
[Site "Chess.com"]
[Date "2024.07.09"]
[Round "2"]
[White "Viacheslav92"]
[Black "bubeliang"]
[Result "0-1"]
[WhiteElo "2569"]
[BlackElo "2825"]
[TimeControl "180+1"]
[EndTime "8:22:05 PDT"]
[Termination "bubeliang won by checkmate"]

1. d4 {[%clk 0:03:00.9]} 1... d5 {[%clk 0:02:55.6]} 2. Bg5 {[%clk 0:02:59.2]}
2... g6 {[%clk 0:02:52.8]} 3. Nf3 {[%clk 0:02:57.3]} 3... Bg7 {[%clk 0:02:52.7]}
4. e3 {[%clk 0:02:57.5]} 4... Nf6 {[%clk 0:02:52.7]} 5. c4 {[%clk 0:02:56.9]}
5... O-O {[%clk 0:02:52.2]} 6. cxd5 {[%clk 0:02:55.2]} 6... Nxd5 {[%clk
0:02:51.6]} 7. Nc3 {[%clk 0:02:55.8]} 7... c6 {[%clk 0:02:48.6]} 8. Bc4 {[%clk
0:02:51.9]} 8... Be6 {[%clk 0:02:43.5]} 9. Bb3 {[%clk 0:02:46.3]} 9... Nd7
{[%clk 0:02:42.4]} 10. O-O {[%clk 0:02:44.8]} 10... N7f6 {[%clk 0:02:37.2]} 11.
Re1 {[%clk 0:02:43.3]} 11... Nxc3 {[%clk 0:02:22.9]} 12. bxc3 {[%clk 0:02:44.2]}
12... Bg4 {[%clk 0:02:20.8]} 13. h3 {[%clk 0:02:42.4]} 13... Bxf3 {[%clk
0:02:19.9]} 14. Qxf3 {[%clk 0:02:43.3]} 14... Qa5 {[%clk 0:02:20.2]} 15. Bxf6
{[%clk 0:02:34.7]} 15... Bxf6 {[%clk 0:02:21.1]} 16. Rac1 {[%clk 0:02:33.4]}
16... Kg7 {[%clk 0:02:17.5]} 17. Red1 {[%clk 0:02:28.5]} 17... Rfd8 {[%clk
0:02:10.3]} 18. Qe2 {[%clk 0:02:27.8]} 18... Rac8 {[%clk 0:02:09.5]} 19. Qc4
{[%clk 0:02:27.2]} 19... e6 {[%clk 0:02:07.5]} 20. Qb4 {[%clk 0:02:18.8]} 20...
Qc7 {[%clk 0:02:02.6]} 21. Qc4 {[%clk 0:02:17.3]} 21... h5 {[%clk 0:02:02]} 22.
Qe2 {[%clk 0:02:17]} 22... a5 {[%clk 0:02:00.3]} 23. Rb1 {[%clk 0:02:14.3]}
23... b5 {[%clk 0:01:59.8]} 24. Bc2 {[%clk 0:02:12]} 24... a4 {[%clk 0:01:58.9]}
25. Be4 {[%clk 0:02:12]} 25... Qa5 {[%clk 0:01:56.7]} 26. Rdc1 {[%clk
0:02:08.6]} 26... Rc7 {[%clk 0:01:50.7]} 27. Bf3 {[%clk 0:02:08]} 27... Rb8
{[%clk 0:01:48.5]} 28. e4 {[%clk 0:02:03]} 28... e5 {[%clk 0:01:46.5]} 29. Qd3
{[%clk 0:01:44.8]} 29... Rd7 {[%clk 0:01:43.8]} 30. d5 {[%clk 0:01:44.3]} 30...
c5 {[%clk 0:01:43.9]} 31. Be2 {[%clk 0:01:39.3]} 31... Rdb7 {[%clk 0:01:39.5]}
32. a3 {[%clk 0:01:29.6]} 32... c4 {[%clk 0:01:36.6]} 33. Qc2 {[%clk 0:01:22.5]}
33... Be7 {[%clk 0:01:36]} 34. Ra1 {[%clk 0:01:23.1]} 34... Bc5 {[%clk
0:01:35.3]} 35. Bf3 {[%clk 0:01:21.1]} 35... Qb6 {[%clk 0:01:31.2]} 36. g3
{[%clk 0:01:20.7]} 36... h4 {[%clk 0:01:29.7]} 37. Kg2 {[%clk 0:01:19.3]} 37...
Qf6 {[%clk 0:01:28.2]} 38. Qe2 {[%clk 0:01:17]} 38... Rh8 {[%clk 0:01:26.9]} 39.
Bg4 {[%clk 0:01:16.5]} 39... Qe7 {[%clk 0:01:22.6]} 40. Qb2 {[%clk 0:01:11.1]}
40... Qg5 {[%clk 0:01:16]} 41. Re1 {[%clk 0:01:03.3]} 41... Rbb8 {[%clk
0:01:06.8]} 42. Ra2 {[%clk 0:01:02.3]} 42... Rh6 {[%clk 0:01:02.7]} 43. Qe2
{[%clk 0:01:02.4]} 43... Qe7 {[%clk 0:00:59.3]} 44. Rea1 {[%clk 0:01:00.7]}
44... Qd6 {[%clk 0:00:51]} 45. Qf3 {[%clk 0:00:59.6]} 45... Rb6 {[%clk
0:00:49.9]} 46. Qe2 {[%clk 0:00:59.2]} 46... Qe7 {[%clk 0:00:49.1]} 47. Qe1
{[%clk 0:00:42.8]} 47... Qg5 {[%clk 0:00:44]} 48. Rb1 {[%clk 0:00:38]} 48... Rh8
{[%clk 0:00:40]} 49. Qc1 {[%clk 0:00:36.3]} 49... Qf6 {[%clk 0:00:37.8]} 50. Qd1
{[%clk 0:00:32.8]} 50... Rhb8 {[%clk 0:00:33.3]} 51. Qf3 {[%clk 0:00:31]} 51...
Qe7 {[%clk 0:00:32.6]} 52. Rba1 {[%clk 0:00:30.6]} 52... Qa7 {[%clk 0:00:31.6]}
53. gxh4 {[%clk 0:00:28.1]} 53... Rf6 {[%clk 0:00:31.7]} 54. Qg3 {[%clk
0:00:27.3]} 54... Rf4 {[%clk 0:00:28.9]} 55. h5 {[%clk 0:00:27.1]} 55... Qb6
{[%clk 0:00:28.7]} 56. hxg6 {[%clk 0:00:26.4]} 56... fxg6 {[%clk 0:00:29.6]} 57.
Rb1 {[%clk 0:00:23.8]} 57... Rbf8 {[%clk 0:00:28.6]} 58. f3 {[%clk 0:00:23.7]}
58... Rb8 {[%clk 0:00:21.3]} 59. Rab2 {[%clk 0:00:23.7]} 59... Bxa3 {[%clk
0:00:18.9]} 60. Rxb5 {[%clk 0:00:21.7]} 60... Qxb5 {[%clk 0:00:19.8]} 61. Rxb5
{[%clk 0:00:22]} 61... Rxb5 {[%clk 0:00:20.7]} 62. Qh4 {[%clk 0:00:21.4]} 62...
Rb8 {[%clk 0:00:16.8]} 63. Qg5 {[%clk 0:00:18.8]} 63... Rf6 {[%clk 0:00:09.1]}
64. Qxe5 {[%clk 0:00:18]} 64... Bd6 {[%clk 0:00:09.8]} 65. Qd4 {[%clk
0:00:15.5]} 65... Re8 {[%clk 0:00:10.4]} 66. Qxc4 {[%clk 0:00:15.6]} 66... a3
{[%clk 0:00:11]} 67. Qa4 {[%clk 0:00:15.7]} 67... Re7 {[%clk 0:00:09.6]} 68. c4
{[%clk 0:00:15.9]} 68... Bc5 {[%clk 0:00:09.8]} 69. Qa5 {[%clk 0:00:15.2]} 69...
Bb6 {[%clk 0:00:06.6]} 70. Qa4 {[%clk 0:00:13.3]} 70... Ra7 {[%clk 0:00:06.1]}
71. Qd1 {[%clk 0:00:09.5]} 71... a2 {[%clk 0:00:06.6]} 72. Qa1 {[%clk
0:00:10.1]} 72... Bd4 {[%clk 0:00:07.2]} 73. Qxd4 {[%clk 0:00:08.7]} 73... a1=Q
{[%clk 0:00:08.1]} 74. Qxa1 {[%clk 0:00:09.1]} 74... Rxa1 {[%clk 0:00:08.8]} 75.
e5 {[%clk 0:00:09.7]} 75... Rf4 {[%clk 0:00:08.6]} 76. c5 {[%clk 0:00:08.6]}
76... Rd4 {[%clk 0:00:07.2]} 77. d6 {[%clk 0:00:08.5]} 77... Rd5 {[%clk
0:00:07.5]} 78. c6 {[%clk 0:00:08.3]} 78... Rc1 {[%clk 0:00:04.1]} 79. c7 {[%clk
0:00:08.6]} 79... Kf7 {[%clk 0:00:04.3]} 80. c8=Q {[%clk 0:00:07.9]} 80... Rxc8
{[%clk 0:00:04]} 81. Bxc8 {[%clk 0:00:08.8]} 81... Rxe5 {[%clk 0:00:04.5]} 82.
Bg4 {[%clk 0:00:09.2]} 82... Rd5 {[%clk 0:00:04.4]} 83. d7 {[%clk 0:00:10.1]}
83... Kf6 {[%clk 0:00:04.9]} 84. Kg3 {[%clk 0:00:10.9]} 84... g5 {[%clk
0:00:05.1]} 85. Kf2 {[%clk 0:00:11.2]} 85... Ke5 {[%clk 0:00:04.7]} 86. Kg3
{[%clk 0:00:11.7]} 86... Rd2 {[%clk 0:00:04.5]} 87. h4 {[%clk 0:00:11.5]} 87...
gxh4+ {[%clk 0:00:04.5]} 88. Kxh4 {[%clk 0:00:12.4]} 88... Kf4 {[%clk
0:00:04.7]} 89. Kh5 {[%clk 0:00:12.8]} 89... Rd6 {[%clk 0:00:05.3]} 90. Bh3
{[%clk 0:00:07.9]} 90... Kxf3 {[%clk 0:00:04.8]} 91. Be6 {[%clk 0:00:07.4]}
91... Kf4 {[%clk 0:00:04.6]} 92. Bh3 {[%clk 0:00:05.4]} 92... Ke5 {[%clk
0:00:03.5]} 93. Kg5 {[%clk 0:00:05.1]} 93... Kd5 {[%clk 0:00:03.5]} 94. Bf5
{[%clk 0:00:03.6]} 94... Kc6 {[%clk 0:00:04]} 95. Kf4 {[%clk 0:00:04.1]} 95...
Kc7 {[%clk 0:00:04.4]} 96. Ke5 {[%clk 0:00:04.3]} 96... Rd2 {[%clk 0:00:05]} 97.
Kf6 {[%clk 0:00:04.6]} 97... Kd8 {[%clk 0:00:05.4]} 98. Ke5 {[%clk 0:00:04.6]}
98... Re2+ {[%clk 0:00:05.5]} 99. Kf4 {[%clk 0:00:04.8]} 99... Re1 {[%clk
0:00:05.3]} 100. Kg5 {[%clk 0:00:04.9]} 100... Ke7 {[%clk 0:00:05.1]} 101. Kf4
{[%clk 0:00:05.1]} 101... Rf1+ {[%clk 0:00:05.1]} 102. Ke5 {[%clk 0:00:04.8]}
102... Rf2 {[%clk 0:00:04.7]} 103. Ke4 {[%clk 0:00:05]} 103... Rd2 {[%clk
0:00:03.7]} 104. Ke5 {[%clk 0:00:04]} 104... Rd1 {[%clk 0:00:04]} 105. Ke4
{[%clk 0:00:04.3]} 105... Kf6 {[%clk 0:00:04]} 106. Bg4 {[%clk 0:00:04.3]}
106... Rd6 {[%clk 0:00:04.2]} 107. Ke3 {[%clk 0:00:03.7]} 107... Ke5 {[%clk
0:00:04.2]} 108. Bh3 {[%clk 0:00:03.6]} 108... Rd4 {[%clk 0:00:04.3]} 109. Bg4
{[%clk 0:00:03]} 109... Re4+ {[%clk 0:00:04.8]} 110. Kf3 {[%clk 0:00:02.7]}
110... Rd4 {[%clk 0:00:05.7]} 111. Bh3 {[%clk 0:00:02.5]} 111... Rd3+ {[%clk
0:00:05.8]} 112. Ke2 {[%clk 0:00:02.7]} 112... Rd6 {[%clk 0:00:05.8]} 113. Bg4
{[%clk 0:00:02.4]} 113... Kf4 {[%clk 0:00:05.7]} 114. Bh3 {[%clk 0:00:02.1]}
114... Rd4 {[%clk 0:00:06]} 115. Kf2 {[%clk 0:00:01.5]} 115... Rd2+ {[%clk
0:00:06]} 116. Ke1 {[%clk 0:00:02]} 116... Ke3 {[%clk 0:00:06.9]} 117. Bf5
{[%clk 0:00:01.8]} 117... Rd6 {[%clk 0:00:07.1]} 118. Kf1 {[%clk 0:00:01]}
118... Kf3 {[%clk 0:00:06.5]} 119. Ke1 {[%clk 0:00:01.1]} 119... Rd4 {[%clk
0:00:04.7]} 120. Bh3 {[%clk 0:00:02]} 120... Ke3 {[%clk 0:00:04.3]} 121. Kf1
{[%clk 0:00:02.5]} 121... Rd1+ {[%clk 0:00:03.1]} 122. Kg2 {[%clk 0:00:03.4]}
122... Kf4 {[%clk 0:00:04]} 123. Kf2 {[%clk 0:00:03.6]} 123... Rd2+ {[%clk
0:00:04.3]} 124. Ke1 {[%clk 0:00:04.1]} 124... Ke3 {[%clk 0:00:04.8]} 125. Kf1
{[%clk 0:00:04.1]} 125... Rf2+ {[%clk 0:00:04.6]} 126. Kg1 {[%clk 0:00:04.2]}
126... Rf8 {[%clk 0:00:05.3]} 127. Kg2 {[%clk 0:00:04.3]} 127... Rg8+ {[%clk
0:00:05.7]} 128. Kh2 {[%clk 0:00:03.9]} 128... Kf2 {[%clk 0:00:06.3]} 129. Be6
{[%clk 0:00:03.8]} 129... Rh8+ {[%clk 0:00:05.7]} 130. Bh3 {[%clk 0:00:04.7]}
130... Kf3 {[%clk 0:00:06]} 131. Kg1 {[%clk 0:00:04]} 131... Ke2 {[%clk
0:00:03.8]} 132. Be6 {[%clk 0:00:04.1]} 132... Kf3 {[%clk 0:00:02.1]} 133. Bf5
{[%clk 0:00:02.7]} 133... Ke3 {[%clk 0:00:01.8]} 134. Be6 {[%clk 0:00:03.1]}
134... Rf8 {[%clk 0:00:02.4]} 135. Kg2 {[%clk 0:00:02.4]} 135... Ke2 {[%clk
0:00:02.5]} 136. Bg4+ {[%clk 0:00:02.7]} 136... Ke3 {[%clk 0:00:02.8]} 137. Kg3
{[%clk 0:00:03.6]} 137... Ke4 {[%clk 0:00:03.1]} 138. Kh4 {[%clk 0:00:04.5]}
138... Kf4 {[%clk 0:00:03.1]} 139. Bh5 {[%clk 0:00:04.9]} 139... Rh8 {[%clk
0:00:02.6]} 140. d8=Q {[%clk 0:00:02.6]} 140... Rxd8 {[%clk 0:00:03.2]} 141. Bg6
{[%clk 0:00:02]} 141... Rh8+ {[%clk 0:00:03.4]} 142. Bh5 {[%clk 0:00:01]} 142...
Rh6 {[%clk 0:00:04]} 143. Kh3 {[%clk 0:00:01]} 143... Rxh5+ {[%clk 0:00:04.9]}
144. Kg2 {[%clk 0:00:01.3]} 144... Rh6 {[%clk 0:00:04.9]} 145. Kf2 {[%clk
0:00:02.2]} 145... Rh2+ {[%clk 0:00:04.6]} 146. Kg1 {[%clk 0:00:03.1]} 146...
Kg3 {[%clk 0:00:04.9]} 147. Kf1 {[%clk 0:00:04]} 147... Kf3 {[%clk 0:00:05.4]}
148. Kg1 {[%clk 0:00:04.9]} 148... Rh3 {[%clk 0:00:05.7]} 149. Kf1 {[%clk
0:00:05.2]} 149... Rh1# {[%clk 0:00:06.6]} 0-1

[Event "Early-Titled-Tuesday-Blitz-July-09-2024"]
[Site "Chess.com"]
[Date "2024.07.09"]
[Round "3"]
[White "Sawatdeekhrap"]
[Black "amylazy"]
[Result "1-0"]
[WhiteElo "2759"]
[BlackElo "2486"]
[TimeControl "180+1"]
[EndTime "8:24:35 PDT"]
[Termination "Sawatdeekhrap won by resignation"]

1. e4 {[%clk 0:03:00.9]} 1... c5 {[%clk 0:02:52.8]} 2. Nf3 {[%clk 0:03:00.4]}
2... e6 {[%clk 0:02:52.9]} 3. d4 {[%clk 0:03:00.6]} 3... cxd4 {[%clk 0:02:53.8]}
4. Nxd4 {[%clk 0:03:01]} 4... a6 {[%clk 0:02:54.7]} 5. Bd3 {[%clk 0:03:00.2]}
5... Bc5 {[%clk 0:02:53.9]} 6. Be3 {[%clk 0:02:59.5]} 6... Nf6 {[%clk
0:02:52.3]} 7. Nxe6 {[%clk 0:02:59.1]} 7... Qa5+ {[%clk 0:02:31.1]} 8. Bd2
{[%clk 0:02:55.8]} 8... Bxf2+ {[%clk 0:02:31]} 9. Kf1 {[%clk 0:02:44.1]} 9...
Qb6 {[%clk 0:02:28.1]} 10. Nxg7+ {[%clk 0:02:39.5]} 10... Kd8 {[%clk 0:02:28.2]}
11. Nc3 {[%clk 0:02:19.1]} 11... d6 {[%clk 0:02:18.3]} 12. Qf3 {[%clk
0:02:08.3]} 1-0

[Event "Early-Titled-Tuesday-Blitz-July-09-2024"]
[Site "Chess.com"]
[Date "2024.07.09"]
[Round "3"]
[White "IlanSchnaider"]
[Black "Likvidator228"]
[Result "1-0"]
[WhiteElo "2843"]
[BlackElo "2564"]
[TimeControl "180+1"]
[EndTime "8:24:45 PDT"]
[Termination "IlanSchnaider won by resignation"]

1. e4 {[%clk 0:03:00.9]} 1... c5 {[%clk 0:02:58.7]} 2. Nf3 {[%clk 0:03:01]} 2...
g6 {[%clk 0:02:59.1]} 3. c3 {[%clk 0:03:00.8]} 3... Bg7 {[%clk 0:02:58.6]} 4. d4
{[%clk 0:03:01.4]} 4... cxd4 {[%clk 0:02:59.5]} 5. cxd4 {[%clk 0:03:02.1]} 5...
d5 {[%clk 0:03:00.1]} 6. e5 {[%clk 0:03:02.6]} 6... a6 {[%clk 0:03:00.5]} 7. h3
{[%clk 0:03:01]} 7... Nc6 {[%clk 0:03:00]} 8. Be2 {[%clk 0:03:01.1]} 8... f6
{[%clk 0:03:00.7]} 9. exf6 {[%clk 0:03:00.5]} 9... Nxf6 {[%clk 0:03:00.7]} 10.
O-O {[%clk 0:03:01.2]} 10... O-O {[%clk 0:03:01.2]} 11. Nc3 {[%clk 0:02:59.6]}
11... Ne4 {[%clk 0:03:00.1]} 12. Be3 {[%clk 0:02:58.2]} 12... Nxc3 {[%clk
0:03:00.1]} 13. bxc3 {[%clk 0:02:58.5]} 13... Bf5 {[%clk 0:02:51.4]} 14. Qd2
{[%clk 0:02:58.2]} 14... Qd7 {[%clk 0:02:43.5]} 15. Bh6 {[%clk 0:02:53.4]} 15...
Rae8 {[%clk 0:02:41.2]} 16. Bxg7 {[%clk 0:02:53.3]} 16... Kxg7 {[%clk
0:02:41.7]} 17. Rae1 {[%clk 0:02:52.4]} 17... Be4 {[%clk 0:02:37]} 18. Ng5
{[%clk 0:02:50.4]} 18... Bf5 {[%clk 0:02:35.5]} 19. Bd3 {[%clk 0:02:48.5]} 19...
Bxd3 {[%clk 0:02:34.5]} 20. Ne6+ {[%clk 0:02:38.3]} 20... Qxe6 {[%clk
0:02:28.9]} 21. Rxe6 {[%clk 0:02:34.4]} 21... Bxf1 {[%clk 0:02:29.2]} 22. Kxf1
{[%clk 0:02:34.7]} 22... Rf6 {[%clk 0:02:28.9]} 23. Qe3 {[%clk 0:02:33.4]} 23...
Kf7 {[%clk 0:02:28.9]} 24. Rxf6+ {[%clk 0:02:32.1]} 24... exf6 {[%clk
0:02:29.3]} 25. Qh6 {[%clk 0:02:32.3]} 25... Kg8 {[%clk 0:02:29.1]} 26. Qf4
{[%clk 0:02:32.8]} 26... Kf7 {[%clk 0:02:26.8]} 27. Qc7+ {[%clk 0:02:32.6]}
27... Re7 {[%clk 0:02:27.3]} 28. Qd6 {[%clk 0:02:33.2]} 28... Nd8 {[%clk
0:02:20.1]} 29. Qxd8 {[%clk 0:02:33]} 1-0

[Event "Early-Titled-Tuesday-Blitz-July-09-2024"]
[Site "Chess.com"]
[Date "2024.07.09"]
[Round "3"]
[White "wannabe2700"]
[Black "Chessdude1987"]
[Result "0-1"]
[WhiteElo "2548"]
[BlackElo "2328"]
[TimeControl "180+1"]
[EndTime "8:24:45 PDT"]
[Termination "Chessdude1987 won by resignation"]

1. b3 {[%clk 0:03:00.9]} 1... e6 {[%clk 0:02:57.3]} 2. Bb2 {[%clk 0:03:01.8]}
2... f5 {[%clk 0:02:57.7]} 3. Nf3 {[%clk 0:03:01.5]} 3... Nf6 {[%clk 0:02:58.2]}
4. g3 {[%clk 0:03:01.9]} 4... d5 {[%clk 0:02:57]} 5. Bg2 {[%clk 0:03:02.2]} 5...
c5 {[%clk 0:02:57.3]} 6. O-O {[%clk 0:03:02.6]} 6... Bd6 {[%clk 0:02:57.6]} 7.
c4 {[%clk 0:03:02.8]} 7... d4 {[%clk 0:02:57]} 8. e3 {[%clk 0:03:03]} 8... Nc6
{[%clk 0:02:45.2]} 9. exd4 {[%clk 0:03:01.7]} 9... cxd4 {[%clk 0:02:45.2]} 10.
Nxd4 {[%clk 0:02:56.2]} 10... Nxd4 {[%clk 0:02:31.8]} 11. Bxd4 {[%clk
0:02:57.1]} 11... Bxg3 {[%clk 0:02:31.8]} 12. Bc5 {[%clk 0:02:45.9]} 12... Bxh2+
{[%clk 0:02:17.4]} 13. Kh1 {[%clk 0:02:46]} 13... Be5 {[%clk 0:02:07.6]} 14. d4
{[%clk 0:02:46]} 14... Ng4 {[%clk 0:02:07.3]} 15. Bh3 {[%clk 0:02:44.5]} 15...
Qh4 {[%clk 0:02:05.5]} 16. Kg2 {[%clk 0:02:44.6]} 16... Ne3+ {[%clk 0:01:48.1]}
0-1